[Event "RUS-ch Rapid 2021"]
[Site "Sochi"]
[Date "2021.10.13"]
[Round "7.15"]
[White "Antipov, Mikhail Al."]
[Black "Gutenev, Alexander"]
[Result "1/2-1/2"]
[ECO "B31"]
[WhiteElo "2619"]
[BlackElo "2455"]
[Annotator "RC"]
[PlyCount "112"]
[EventDate "2021.10.12"]
[EventType "swiss"]
[EventCountry "RUS"]
[SourceTitle "playchess.com"]
[Source "ChessBase"]
[SourceQuality "1"]
[TimeControl "900+10"]

1. e4 {[%emt 0:00:00]} c5 {[%emt 0:00:00]} 2. Nf3 {[%emt 0:00:04]} Nc6 {
[%emt 0:00:07]} 3. Bb5 {[%emt 0:00:00]} g6 {[%emt 0:00:00]} 4. Bxc6 {[%emt 0:
00:13]} bxc6 {[%emt 0:00:02]} 5. O-O {[%emt 0:00:00]} Bg7 {[%emt 0:00:06]} 6.
Re1 {[%emt 0:00:00]} Qc7 {[%emt 0:00:16]} 7. d3 {[%emt 0:01:20]} d6 {[%emt 0:
00:16]} 8. e5 {[%emt 0:00:12]} dxe5 {[%emt 0:00:52]} 9. Nc3 {[%emt 0:00:55]} c4
{[%emt 0:02:20]} 10. dxc4 {[%emt 0:00:25]} f5 {[%emt 0:00:01]} 11. Be3 {
[%emt 0:00:25]} e4 {[%emt 0:00:50]} 12. Bd4 {[%emt 0:00:28]} Nf6 {[%emt 0:01:
36]} 13. Be5 {[%emt 0:00:15]} Qa5 {[%emt 0:01:08]} 14. Rb1 {[%emt 0:05:37]}
exf3 {[%emt 0:01:32]} 15. Qxf3 {[%emt 0:00:11]} O-O {[%emt 0:00:38]} 16. b4 {
[%emt 0:00:12]} Qa6 {[%emt 0:04:16]} 17. b5 {[%emt 0:00:34]} cxb5 {[%emt 0:00:
00]} 18. Bxf6 {[%emt 0:00:00]} Bxf6 {[%emt 0:00:43]} 19. Nd5 {[%emt 0:00:00]}
Rb8 {[%emt 0:01:14]} 20. Nxe7+ {[%emt 0:04:52]} Kg7 {[%emt 0:00:02]} 21. Qf4 {
[%emt 0:00:10]} Be6 {[%emt 0:00:44]} 22. Qc7 {[%emt 0:00:23]} Bxe7 {[%emt 0:00:
53]} 23. Qxe7+ {[%emt 0:00:18]} Bf7 {[%emt 0:00:00]} 24. cxb5 {[%emt 0:00:52]}
Qxa2 {[%emt 0:00:29]} 25. h4 {[%emt 0:00:55]} Rfe8 {[%emt 0:00:19]} 26. Qc5 {
[%emt 0:00:39]} Qc4 {[%emt 0:00:20]} 27. Qxa7 {[%emt 0:00:00]} Rxb5 {[%emt 0:
00:16]} 28. Qa1+ {[%emt 0:00:02]} Kg8 {[%emt 0:00:08]} 29. Rxe8+ {[%emt 0:00:
01]} Bxe8 {[%emt 0:00:00]} 30. Re1 {[%emt 0:00:00]} Rb8 {[%emt 0:00:39]} 31.
Qf6 {[%emt 0:00:57]} Bf7 {[%emt 0:00:10]} 32. h5 {[%emt 0:00:18]} Re8 {[%emt 0:
00:00]} 33. Rxe8+ {[%emt 0:00:09]} Bxe8 {[%emt 0:00:01]} 34. h6 {[%emt 0:00:03]
} Qf7 {[%emt 0:00:09]} 35. Qe5 {[%emt 0:00:03]} Qf8 {[%emt 0:00:05]} 36. c4 {
[%emt 0:00:24]} Bf7 {[%emt 0:00:00]} 37. Qf4 {[%emt 0:00:00]} Qd8 {[%emt 0:00:
28]} 38. c5 {[%emt 0:00:08]} Qd7 {[%emt 0:00:21]} 39. Qb8+ {[%emt 0:00:22]} Be8
{[%emt 0:00:09]} 40. Qe5 {[%emt 0:00:03]} Kf7 {[%emt 0:00:21]} 41. c6 {[%emt 0:
00:20]} Qd1+ {[%emt 0:00:13]} 42. Kh2 {[%emt 0:00:00]} Bxc6 {[%emt 0:00:04]}
43. Qg7+ {[%emt 0:00:03]} Ke6 {[%emt 0:00:00]} 44. Qxh7 {[%emt 0:00:24]} Qh5+ {
[%emt 0:00:19]} 45. Kg1 {[%emt 0:00:01]} Qg5 {[%emt 0:00:22]} 46. Qg8+ {
[%emt 0:00:07]} Kd6 {[%emt 0:00:02]} 47. Qf8+ {[%emt 0:00:23]} Kc7 {[%emt 0:00:
12]} 48. Qg7+ {[%emt 0:00:02]} Kc8 {[%emt 0:00:15]} 49. Qg8+ {[%emt 0:00:14]}
Kb7 {[%emt 0:00:06]} 50. Qb3+ {[%emt 0:00:06]} Kc8 {[%emt 0:00:10]} 51. Qg8+ {
[%emt 0:00:09]} Kb7 {[%emt 0:00:04]} 52. Qb3+ {[%emt 0:00:00]} Ka6 {[%emt 0:00:
10]} 53. Qc4+ {[%emt 0:00:28]} Kb7 {[%emt 0:00:12]} 54. Qb3+ {[%emt 0:00:00]}
Ka6 {[%emt 0:00:03]} 55. Qa3+ {[%emt 0:00:16]} Kb7 {[%emt 0:00:02]} 56. Qb3+ {
[%emt 0:00:03]} Ka6 {[%emt 0:00:11]} 1/2-1/2

[Event "RUS-ch Rapid 2021"]
[Site "Sochi"]
[Date "2021.10.13"]
[Round "7.16"]
[White "Yatzenko, Anton"]
[Black "Grachev, Boris"]
[Result "0-1"]
[ECO "D02"]
[WhiteElo "2370"]
[BlackElo "2615"]
[Annotator "RC"]
[PlyCount "50"]
[EventDate "2021.10.12"]
[EventType "swiss"]
[EventCountry "RUS"]
[SourceTitle "playchess.com"]
[Source "ChessBase"]
[SourceQuality "1"]
[TimeControl "900+10"]

1. d4 {[%emt 0:00:00]} d5 {[%emt 0:00:03]} 2. Nf3 {[%emt 0:00:02]} Nf6 {
[%emt 0:00:04]} 3. Bf4 {[%emt 0:00:01]} Bf5 {[%emt 0:00:07]} 4. e3 {[%emt 0:00:
01]} e6 {[%emt 0:00:04]} 5. c4 {[%emt 0:00:02]} Bxb1 {[%emt 0:01:24]} 6. Qxb1 {
[%emt 0:00:01]} Bb4+ {[%emt 0:00:03]} 7. Kd1 {[%emt 0:00:02]} Bd6 {[%emt 0:00:
57]} 8. Bxd6 {[%emt 0:00:48]} Qxd6 {[%emt 0:00:16]} 9. cxd5 {[%emt 0:00:32]}
exd5 {[%emt 0:00:03]} 10. Bd3 {[%emt 0:00:01]} Nbd7 {[%emt 0:00:19]} 11. Ke2 {
[%emt 0:00:09]} O-O {[%emt 0:00:04]} 12. Rd1 {[%emt 0:00:19]} Rae8 {[%emt 0:00:
03]} 13. Qc2 {[%emt 0:00:31]} Ne4 {[%emt 0:01:17]} 14. g3 {[%emt 0:01:03]} f5 {
[%emt 0:00:17]} 15. Kf1 {[%emt 0:01:30]} c6 {[%emt 0:00:10]} 16. b4 {[%emt 0:
00:14]} Qh6 {[%emt 0:01:20]} 17. h4 {[%emt 0:01:47]} Ndf6 {[%emt 0:02:04]} 18.
Bxe4 {[%emt 0:06:29]} fxe4 {[%emt 0:01:02]} 19. Nh2 {[%emt 0:00:00]} g5 {
[%emt 0:00:30]} 20. Kg2 {[%emt 0:00:19]} gxh4 {[%emt 0:00:15]} 21. gxh4 {
[%emt 0:00:05]} Qxh4 {[%emt 0:01:27]} 22. Rg1 {[%emt 0:00:00]} Kh8 {[%emt 0:00:
15]} 23. Kh1 {[%emt 0:00:07]} h5 {[%emt 0:00:52]} 24. Rg2 {[%emt 0:02:19]} Ng4
{[%emt 0:00:00]} 25. Kg1 {[%emt 0:00:02]} Rg8 {[%emt 0:00:53]} 0-1

[Event "RUS-ch Rapid 2021"]
[Site "Sochi"]
[Date "2021.10.13"]
[Round "7.17"]
[White "Smirnov, Timofey"]
[Black "Kezin, Roman"]
[Result "1/2-1/2"]
[ECO "B48"]
[WhiteElo "2409"]
[BlackElo "2492"]
[Annotator "RC"]
[PlyCount "89"]
[EventDate "2021.10.12"]
[EventType "swiss"]
[EventCountry "RUS"]
[SourceTitle "playchess.com"]
[Source "ChessBase"]
[SourceQuality "1"]
[TimeControl "900+10"]

1. e4 {[%emt 0:00:00]} c5 {[%emt 0:00:03]} 2. Nf3 {[%emt 0:00:02]} e6 {[%emt 0:
00:04]} 3. d4 {[%emt 0:00:12]} cxd4 {[%emt 0:00:03]} 4. Nxd4 {[%emt 0:00:01]}
Nc6 {[%emt 0:00:01]} 5. Nc3 {[%emt 0:00:36]} Qc7 {[%emt 0:00:00]} 6. Be3 {
[%emt 0:00:19]} a6 {[%emt 0:00:00]} 7. Qd2 {[%emt 0:00:05]} Nf6 {[%emt 0:00:23]
} 8. f3 {[%emt 0:01:07]} b5 {[%emt 0:01:39]} 9. O-O-O {[%emt 0:00:20]} Be7 {
[%emt 0:01:29]} 10. g4 {[%emt 0:00:39]} Nxd4 {[%emt 0:00:36]} 11. Bxd4 {
[%emt 0:00:56]} Bb7 {[%emt 0:00:07]} 12. Kb1 {[%emt 0:00:49]} O-O {[%emt 0:01:
14]} 13. h4 {[%emt 0:00:48]} b4 {[%emt 0:06:05]} 14. Ne2 {[%emt 0:01:55]} e5 {
[%emt 0:00:45]} 15. Be3 {[%emt 0:01:00]} Rfd8 {[%emt 0:02:11]} 16. g5 {[%emt 0:
00:22]} Nh5 {[%emt 0:00:00]} 17. c4 {[%emt 0:01:03]} bxc3 {[%emt 0:02:13]} 18.
Nxc3 {[%emt 0:00:12]} Bb4 {[%emt 0:00:39]} 19. Qf2 {[%emt 0:02:55]} Bxc3 {
[%emt 0:00:31]} 20. Rc1 {[%emt 0:00:18]} Bxe4+ {[%emt 0:00:17]} 21. fxe4 {
[%emt 0:00:00]} Qb7 {[%emt 0:00:00]} 22. Ka1 {[%emt 0:01:22]} Bxb2+ {[%emt 0:
00:20]} 23. Qxb2 {[%emt 0:00:00]} Qxe4 {[%emt 0:00:00]} 24. Bg2 {[%emt 0:00:21]
} Qxe3 {[%emt 0:00:00]} 25. Bxa8 {[%emt 0:00:02]} Rxa8 {[%emt 0:00:01]} 26.
Rhe1 {[%emt 0:00:37]} Qh3 {[%emt 0:00:15]} 27. Qb7 {[%emt 0:00:47]} Rf8 {
[%emt 0:00:23]} 28. Rc8 {[%emt 0:00:00]} d6 {[%emt 0:00:10]} 29. Rxf8+ {
[%emt 0:01:09]} Kxf8 {[%emt 0:00:00]} 30. Qb8+ {[%emt 0:00:07]} Ke7 {[%emt 0:
00:03]} 31. Rc1 {[%emt 0:00:11]} Nf4 {[%emt 0:00:32]} 32. Qb7+ {[%emt 0:01:43]}
Kd8 {[%emt 0:00:01]} 33. Qc7+ {[%emt 0:00:32]} Ke8 {[%emt 0:00:01]} 34. Qb8+ {
[%emt 0:00:00]} Ke7 {[%emt 0:00:09]} 35. Qb7+ {[%emt 0:00:04]} Kd8 {[%emt 0:00:
10]} 36. Qxf7 {[%emt 0:00:03]} Ne6 {[%emt 0:00:17]} 37. Qb7 {[%emt 0:00:28]}
Nc5 {[%emt 0:00:06]} 38. Qxg7 {[%emt 0:00:15]} Qxh4 {[%emt 0:00:30]} 39. Qf6+ {
[%emt 0:00:10]} Kd7 {[%emt 0:00:06]} 40. Qf5+ {[%emt 0:00:03]} Kc7 {[%emt 0:00:
03]} 41. Qf7+ {[%emt 0:00:15]} Kc6 {[%emt 0:00:07]} 42. Qe8+ {[%emt 0:00:09]}
Kc7 {[%emt 0:00:00]} 43. Qf7+ {[%emt 0:00:03]} Kc6 {[%emt 0:00:06]} 44. Qe8+ {
[%emt 0:00:03]} Kc7 {[%emt 0:00:00]} 45. Qf7+ {[%emt 0:00:16]} 1/2-1/2

[Event "RUS-ch Rapid 2021"]
[Site "Sochi"]
[Date "2021.10.13"]
[Round "7.18"]
[White "Petrov, Nikita"]
[Black "Derjabin, Ilja"]
[Result "1-0"]
[ECO "A53"]
[WhiteElo "2539"]
[BlackElo "2353"]
[Annotator "ChessBase"]
[PlyCount "79"]
[EventDate "2021.10.12"]
[EventType "swiss"]
[EventCountry "RUS"]
[SourceTitle "playchess.com"]
[Source "ChessBase"]
[SourceQuality "1"]
[TimeControl "900+10"]

1. d4 {[%emt 0:00:00]} Nf6 {[%emt 0:00:03]} 2. c4 {[%emt 0:00:07]} d6 {[%emt 0:
00:26]} 3. Nc3 {[%emt 0:00:00]} Bf5 {[%emt 0:00:02]} 4. g3 {[%emt 0:00:43]} c6
{[%emt 0:03:30]} 5. Bg2 {[%emt 0:00:11]} Nbd7 {[%emt 0:00:28]} 6. e4 {[%emt 0:
00:15]} Bg6 {[%emt 0:00:00]} 7. Nge2 {[%emt 0:00:07]} e5 {[%emt 0:00:08]} 8.
O-O {[%emt 0:00:12]} Bh5 {[%emt 0:00:33]} 9. f3 {[%emt 0:00:18]} Be7 {[%emt 0:
00:11]} 10. Be3 {[%emt 0:00:00]} h6 {[%emt 0:00:11]} 11. Qc2 {[%emt 0:00:36]}
O-O {[%emt 0:00:20]} 12. h3 {[%emt 0:00:42]} Bg6 {[%emt 0:00:25]} 13. f4 {
[%emt 0:00:51]} exd4 {[%emt 0:00:36]} 14. Bxd4 {[%emt 0:00:41]} Re8 {[%emt 0:
00:19]} 15. g4 {[%emt 0:00:34]} Bf8 {[%emt 0:01:15]} 16. Ng3 {[%emt 0:00:07]}
Qa5 {[%emt 0:01:16]} 17. Qf2 {[%emt 0:01:31]} c5 {[%emt 0:00:44]} 18. Bxf6 {
[%emt 0:00:20]} Nxf6 {[%emt 0:00:11]} 19. e5 {[%emt 0:00:09]} dxe5 {[%emt 0:00:
09]} 20. f5 {[%emt 0:00:01]} Bh7 {[%emt 0:00:10]} 21. Nd5 {[%emt 0:01:38]} Nxd5
{[%emt 0:00:21]} 22. Bxd5 {[%emt 0:00:04]} Rad8 {[%emt 0:00:29]} 23. Ne4 {
[%emt 0:00:36]} Qb4 {[%emt 0:01:28]} 24. Rad1 {[%emt 0:01:32]} Rxd5 {[%emt 0:
01:09]} 25. Rxd5 {[%emt 0:00:03]} Qxc4 {[%emt 0:00:09]} 26. Qf3 {[%emt 0:00:48]
} Qxa2 {[%emt 0:02:15]} 27. Rd7 {[%emt 0:00:37]} Qxb2 {[%emt 0:00:18]} 28. g5 {
[%emt 0:01:14]} c4 {[%emt 0:00:21]} 29. g6 {[%emt 0:01:27]} Bxg6 {[%emt 0:01:
41]} 30. fxg6 {[%emt 0:00:05]} Qb6+ {[%emt 0:00:01]} 31. Kh1 {[%emt 0:00:33]}
Qxg6 {[%emt 0:00:03]} 32. Rxf7 {[%emt 0:00:40]} Be7 {[%emt 0:00:18]} 33. Rf5 {
[%emt 0:01:01]} Bg5 {[%emt 0:00:34]} 34. Rg1 {[%emt 0:00:41]} Qc6 {[%emt 0:00:
28]} 35. Nxg5 {[%emt 0:00:01]} e4 {[%emt 0:00:06]} 36. Qg2 {[%emt 0:00:29]}
hxg5 {[%emt 0:00:06]} 37. Rxg5 {[%emt 0:00:02]} e3 {[%emt 0:00:07]} 38. Rxg7+ {
[%emt 0:00:05]} Kh8 {[%emt 0:00:03]} 39. Qxc6 {[%emt 0:00:08]} bxc6 {[%emt 0:
00:01]} 40. R7g4 {[%emt 0:00:32]} 1-0

[Event "RUS-ch Rapid 2021"]
[Site "Sochi"]
[Date "2021.10.13"]
[Round "7.19"]
[White "Popov, Valerij"]
[Black "Ekdyshman, Mikhail"]
[Result "1-0"]
[ECO "B20"]
[WhiteElo "2537"]
[BlackElo "2315"]
[Annotator "ChessBase"]
[PlyCount "99"]
[EventDate "2021.10.12"]
[EventType "swiss"]
[EventCountry "RUS"]
[SourceTitle "playchess.com"]
[Source "ChessBase"]
[SourceQuality "1"]
[TimeControl "900+10"]

1. e4 {[%emt 0:00:05]} c5 {[%emt 0:00:00]} 2. Ne2 {[%emt 0:00:04]} d6 {[%emt 0:
00:23]} 3. g3 {[%emt 0:00:08]} g6 {[%emt 0:00:06]} 4. Bg2 {[%emt 0:00:00]} Bg7
{[%emt 0:00:04]} 5. c3 {[%emt 0:00:00]} h5 {[%emt 0:00:20]} 6. h3 {[%emt 0:00:
38]} Nf6 {[%emt 0:02:56]} 7. d4 {[%emt 0:00:02]} Nc6 {[%emt 0:00:12]} 8. O-O {
[%emt 0:00:22]} h4 {[%emt 0:01:23]} 9. g4 {[%emt 0:00:03]} Nxg4 {[%emt 0:00:41]
} 10. dxc5 {[%emt 0:06:05]} Nf6 {[%emt 0:02:50]} 11. cxd6 {[%emt 0:00:04]} exd6
{[%emt 0:00:27]} 12. Na3 {[%emt 0:00:16]} O-O {[%emt 0:00:42]} 13. Bg5 {
[%emt 0:00:47]} Be6 {[%emt 0:01:43]} 14. Bxh4 {[%emt 0:00:45]} Qa5 {[%emt 0:00:
23]} 15. Nf4 {[%emt 0:01:21]} Rfe8 {[%emt 0:01:13]} 16. Bg3 {[%emt 0:02:34]}
Rad8 {[%emt 0:01:12]} 17. Re1 {[%emt 0:00:08]} b5 {[%emt 0:01:07]} 18. Nc2 {
[%emt 0:00:41]} b4 {[%emt 0:00:14]} 19. cxb4 {[%emt 0:00:17]} Nxb4 {[%emt 0:00:
00]} 20. Nxe6 {[%emt 0:00:29]} Rxe6 {[%emt 0:00:21]} 21. Nd4 {[%emt 0:00:04]}
Ree8 {[%emt 0:01:14]} 22. a3 {[%emt 0:00:03]} Qb6 {[%emt 0:00:38]} 23. axb4 {
[%emt 0:00:05]} Nh5 {[%emt 0:00:00]} 24. Ne2 {[%emt 0:00:02]} Nxg3 {[%emt 0:00:
19]} 25. Nxg3 {[%emt 0:00:03]} Bxb2 {[%emt 0:00:00]} 26. Rb1 {[%emt 0:00:12]}
Bc3 {[%emt 0:00:05]} 27. Re3 {[%emt 0:00:27]} Bxb4 {[%emt 0:00:00]} 28. Ne2 {
[%emt 0:00:33]} d5 {[%emt 0:00:25]} 29. Nf4 {[%emt 0:01:52]} d4 {[%emt 0:00:22]
} 30. Reb3 {[%emt 0:00:07]} a5 {[%emt 0:00:18]} 31. Nd5 {[%emt 0:00:00]} Qc5 {
[%emt 0:00:32]} 32. Nxb4 {[%emt 0:00:00]} axb4 {[%emt 0:00:02]} 33. Rxb4 {
[%emt 0:00:02]} Re7 {[%emt 0:00:03]} 34. Rb5 {[%emt 0:00:01]} Qc3 {[%emt 0:00:
02]} 35. Rc1 {[%emt 0:00:17]} Qa3 {[%emt 0:00:08]} 36. Rb3 {[%emt 0:00:15]} Qa5
{[%emt 0:00:10]} 37. Rd3 {[%emt 0:00:00]} Qe5 {[%emt 0:00:02]} 38. Qd2 {
[%emt 0:00:06]} g5 {[%emt 0:00:08]} 39. Rd1 {[%emt 0:00:08]} Red7 {[%emt 0:00:
07]} 40. Qe2 {[%emt 0:00:03]} Kg7 {[%emt 0:00:13]} 41. Qg4 {[%emt 0:00:05]} Rd6
{[%emt 0:00:05]} 42. h4 {[%emt 0:00:06]} Rg6 {[%emt 0:00:05]} 43. Qf5 {[%emt 0:
00:18]} Qe7 {[%emt 0:00:31]} 44. hxg5 {[%emt 0:00:26]} Rxg5 {[%emt 0:00:06]}
45. Qf4 {[%emt 0:00:00]} Rd6 {[%emt 0:00:09]} 46. Rg3 {[%emt 0:00:01]} Rxg3 {
[%emt 0:00:06]} 47. Qxg3+ {[%emt 0:00:01]} Rg6 {[%emt 0:00:00]} 48. Qf4 {
[%emt 0:00:16]} Qc5 {[%emt 0:00:26]} 49. e5 {[%emt 0:00:09]} Qd5 {[%emt 0:00:
11]} 50. Qf6+ {[%emt 0:00:06]} 1-0

[Event "RUS-ch Rapid 2021"]
[Site "Sochi"]
[Date "2021.10.13"]
[Round "7.20"]
[White "Gitelson, Arkady"]
[Black "Potapov, Pavel"]
[Result "0-1"]
[ECO "B20"]
[WhiteElo "2188"]
[BlackElo "2481"]
[Annotator "RC"]
[PlyCount "50"]
[EventDate "2021.10.12"]
[EventType "swiss"]
[EventCountry "RUS"]
[SourceTitle "playchess.com"]
[Source "ChessBase"]
[SourceQuality "1"]
[TimeControl "900+10"]

1. e4 {[%emt 0:00:00]} c5 {[%emt 0:00:00]} 2. b3 {[%emt 0:00:00]} Nc6 {[%emt 0:
00:54]} 3. Bb2 {[%emt 0:00:14]} d6 {[%emt 0:00:10]} 4. Bb5 {[%emt 0:00:02]} Bd7
{[%emt 0:00:15]} 5. f4 {[%emt 0:00:03]} a6 {[%emt 0:00:24]} 6. Bxc6 {[%emt 0:
00:01]} Bxc6 {[%emt 0:00:00]} 7. d3 {[%emt 0:00:00]} Nf6 {[%emt 0:00:09]} 8.
Nf3 {[%emt 0:00:04]} e6 {[%emt 0:00:19]} 9. O-O {[%emt 0:00:02]} Be7 {[%emt 0:
01:57]} 10. Nbd2 {[%emt 0:00:04]} Qc7 {[%emt 0:00:29]} 11. Qe1 {[%emt 0:00:22]}
O-O-O {[%emt 0:01:32]} 12. Nc4 {[%emt 0:01:22]} b5 {[%emt 0:02:26]} 13. Na5 {
[%emt 0:00:00]} Ba8 {[%emt 0:00:00]} 14. a3 {[%emt 0:00:00]} d5 {[%emt 0:01:32]
} 15. e5 {[%emt 0:05:21]} Nd7 {[%emt 0:00:13]} 16. c4 {[%emt 0:00:00]} bxc4 {
[%emt 0:01:43]} 17. bxc4 {[%emt 0:00:20]} d4 {[%emt 0:00:45]} 18. Rb1 {[%emt 0:
00:10]} h6 {[%emt 0:01:38]} 19. Bc1 {[%emt 0:07:42]} g5 {[%emt 0:00:00]} 20.
fxg5 {[%emt 0:00:00]} hxg5 {[%emt 0:00:00]} 21. Bxg5 {[%emt 0:00:00]} Bxg5 {
[%emt 0:00:00]} 22. Nxg5 {[%emt 0:00:00]} Rdg8 {[%emt 0:00:00]} 23. h4 {
[%emt 0:00:00]} Qxe5 {[%emt 0:01:10]} 24. Rxf7 {[%emt 0:00:58]} Rxg5 {[%emt 0:
00:23]} 25. hxg5 {[%emt 0:00:00]} Qh2+ {[%emt 0:00:00]} 0-1

[Event "RUS-ch Rapid 2021"]
[Site "Sochi"]
[Date "2021.10.13"]
[Round "7.21"]
[White "Murzin, Volodar"]
[Black "Gubsky, Egor"]
[Result "1-0"]
[ECO "B30"]
[WhiteElo "2513"]
[BlackElo "2339"]
[Annotator "RC"]
[PlyCount "97"]
[EventDate "2021.10.12"]
[EventType "swiss"]
[EventCountry "RUS"]
[SourceTitle "playchess.com"]
[Source "ChessBase"]
[SourceQuality "1"]
[TimeControl "900+10"]

1. e4 {[%emt 0:00:00]} c5 {[%emt 0:00:00]} 2. Nf3 {[%emt 0:00:00]} Nc6 {
[%emt 0:00:05]} 3. Bb5 {[%emt 0:00:12]} e6 {[%emt 0:00:01]} 4. O-O {[%emt 0:00:
00]} Nge7 {[%emt 0:00:00]} 5. d4 {[%emt 0:00:02]} cxd4 {[%emt 0:00:06]} 6. Nxd4
{[%emt 0:00:03]} Nxd4 {[%emt 0:00:06]} 7. Qxd4 {[%emt 0:00:00]} a6 {[%emt 0:00:
00]} 8. Be2 {[%emt 0:00:47]} Nc6 {[%emt 0:00:05]} 9. Qd1 {[%emt 0:04:45]} Be7 {
[%emt 0:00:38]} 10. Be3 {[%emt 0:00:17]} O-O {[%emt 0:00:08]} 11. c4 {[%emt 0:
00:16]} d6 {[%emt 0:01:59]} 12. Nc3 {[%emt 0:00:04]} Rb8 {[%emt 0:06:42]} 13.
Qd2 {[%emt 0:01:16]} Qc7 {[%emt 0:00:35]} 14. Rac1 {[%emt 0:00:19]} Ne5 {
[%emt 0:00:19]} 15. b3 {[%emt 0:00:16]} b6 {[%emt 0:00:05]} 16. f4 {[%emt 0:02:
06]} Nd7 {[%emt 0:00:05]} 17. Rfd1 {[%emt 0:00:00]} Rd8 {[%emt 0:00:25]} 18.
Bf3 {[%emt 0:00:37]} Bb7 {[%emt 0:00:14]} 19. Qf2 {[%emt 0:02:51]} Ba8 {
[%emt 0:00:25]} 20. g4 {[%emt 0:01:04]} Bf8 {[%emt 0:00:31]} 21. g5 {[%emt 0:
00:53]} Qb7 {[%emt 0:00:35]} 22. Ne2 {[%emt 0:00:16]} Nc5 {[%emt 0:00:23]} 23.
Ng3 {[%emt 0:00:08]} b5 {[%emt 0:00:08]} 24. h4 {[%emt 0:00:28]} bxc4 {[%emt 0:
00:01]} 25. Rxc4 {[%emt 0:00:00]} Qb5 {[%emt 0:02:04]} 26. h5 {[%emt 0:00:15]}
Rbc8 {[%emt 0:00:47]} 27. Bg2 {[%emt 0:01:38]} d5 {[%emt 0:00:39]} 28. Rcd4 {
[%emt 0:00:03]} Qe8 {[%emt 0:02:09]} 29. Qd2 {[%emt 0:00:50]} e5 {[%emt 0:00:
26]} 30. fxe5 {[%emt 0:00:06]} Ne6 {[%emt 0:00:19]} 31. Rxd5 {[%emt 0:00:26]}
Bxd5 {[%emt 0:00:00]} 32. exd5 {[%emt 0:00:00]} Nc5 {[%emt 0:00:11]} 33. Bd4 {
[%emt 0:00:23]} Nd7 {[%emt 0:00:00]} 34. Re1 {[%emt 0:00:11]} Qe7 {[%emt 0:00:
23]} 35. d6 {[%emt 0:00:15]} Qe6 {[%emt 0:00:07]} 36. Qf2 {[%emt 0:00:10]} Qg4
{[%emt 0:00:10]} 37. Bd5 {[%emt 0:00:09]} Kh8 {[%emt 0:00:14]} 38. Kh2 {
[%emt 0:00:12]} Qxg5 {[%emt 0:00:04]} 39. Qxf7 {[%emt 0:00:10]} Bxd6 {[%emt 0:
00:04]} 40. Nf5 {[%emt 0:00:12]} Bxe5+ {[%emt 0:00:20]} 41. Rxe5 {[%emt 0:00:
00]} Rc2+ {[%emt 0:00:09]} 42. Kh3 {[%emt 0:00:09]} Nf6 {[%emt 0:00:18]} 43.
Ne3 {[%emt 0:00:15]} Rh2+ {[%emt 0:00:10]} 44. Kxh2 {[%emt 0:00:00]} Qh4+ {
[%emt 0:00:00]} 45. Kg2 {[%emt 0:00:06]} Qxd4 {[%emt 0:00:03]} 46. h6 {[%emt 0:
00:16]} Rg8 {[%emt 0:00:25]} 47. hxg7+ {[%emt 0:00:11]} Rxg7+ {[%emt 0:00:00]}
48. Qxg7+ {[%emt 0:00:01]} Kxg7 {[%emt 0:00:03]} 49. Nf5+ {[%emt 0:00:02]} 1-0